fUSD/lending_fUSD_20250906
["ID","MTS","AMOUNT","RATE_DAILY","PERIOD"]
[383910455,1757171518400,-400.0,0.00036986,8]
[383910456,1757171518409,-400.0,0.00036986,8]
[383910457,1757171518418,-400.0,0.00036986,8]
[383910458,1757171518428,-400.0,0.00036986,8]
[383910459,1757171518437,-505.84,0.00036986,8]
[383910460,1757171518447,-403.7739818,0.00036986,8]
[383910461,1757171518456,-469.66,0.00036986,8]
[383910462,1757171518466,-400.0,0.00036986,8]
[383910463,1757171518475,-400.0,0.00036986,8]
[383910464,1757171518485,-492.82,0.00036986,8]
[383910465,1757171518494,-400.0,0.00036986,8]
[383910466,1757171518504,-432.82,0.00036986,8]
[383910467,1757171518514,-400.0,0.00036986,8]
[383910468,1757171518524,-400.0,0.00036986,8]
[383910469,1757171518534,-400.0,0.00036986,8]
[383910470,1757171518543,-400.0,0.00036986,8]
[383910471,1757171518555,-708.31,0.00036986,8]
[383910472,1757171518565,-400.0,0.00036986,8]
[383910473,1757171518574,-447.54,0.00036986,8]
[383910474,1757171518583,-400.0,0.00036986,8]
[383910475,1757171518593,-902.07,0.00036986,8]
[383910476,1757171518602,-488.65,0.00036986,8]
[383910477,1757171518612,-400.0,0.00036986,8]
[383910478,1757171518621,-400.0,0.00036986,8]
[383910479,1757171518631,-414.13,0.00036986,8]
[383910480,1757171518641,-408.94690685,0.00036986,8]
[383910481,1757171518651,-400.0,0.00036986,8]
[383910482,1757171518660,-403.26,0.00036986,8]
[383910483,1757171518670,-697.99,0.00036986,8]
[383910484,1757171518679,-400.0,0.00036986,8]
[383910485,1757171518688,-402.09971854,0.00036986,8]
[383910486,1757171518698,-154.10909691,0.00036986,8]
[383910487,1757171518708,-400.0,0.00036986,8]
[383910488,1757171518718,-762.44,0.00036986,8]
[383910489,1757171518727,-400.0,0.00036986,8]
[383910490,1757171518736,-400.0,0.00036986,8]
[383910491,1757171518746,-439.57,0.00036986,8]
[383910492,1757171518755,-400.0,0.00036986,8]
[383910493,1757171518765,-536.59,0.00036986,8]
[383910494,1757171518774,-400.0,0.00036986,8]
[383910495,1757171518784,-400.0,0.00036986,8]
[383910496,1757171518793,-400.0,0.00036986,8]
[383910497,1757171518803,-413.22769356,0.00036986,8]
[383910498,1757171518812,-400.0,0.00036986,8]
[383910499,1757171518822,-488.95,0.00036986,8]
[383910500,1757171518832,-400.0,0.00036986,8]
[383910501,1757171518842,-300.0,0.00036986,8]
[383910502,1757171518852,-473.09,0.00036986,8]
[383910503,1757171518862,-400.0,0.00036986,8]
[383910504,1757171518871,-400.0,0.00036986,8]
[383910505,1757171518882,-400.0,0.00036986,8]
[383910506,1757171518891,-400.0,0.00036986,8]
[383910507,1757171518901,-422.55375715,0.00036986,8]
[383910508,1757171518910,-400.0,0.00036986,8]
[383910509,1757171518920,-400.0,0.00036986,8]
[383910510,1757171518930,-489.25,0.00036986,8]
[383910511,1757171518940,-400.0,0.00036986,8]
[383910512,1757171518950,-400.0,0.00036986,8]
[383910513,1757171518960,-400.0,0.00036986,8]
[383910514,1757171518970,-400.0,0.00036986,8]
[383910515,1757171518980,-400.0,0.00036986,8]
[383910516,1757171518990,-400.0,0.00036986,8]
[383910517,1757171519000,-400.0,0.00036986,8]
[383910518,1757171519010,-764.96,0.00036986,8]
[383910519,1757171519020,-400.0,0.00036986,8]
[383910520,1757171519030,-400.0,0.00036986,8]
[383910521,1757171519040,-406.21,0.00036986,8]
[383910522,1757171519049,-400.0,0.00036986,8]
[383910523,1757171519059,-400.0,0.00036986,8]
[383910524,1757171519068,-400.0,0.00036986,8]
[383910525,1757171519078,-597.36,0.00036986,8]
[383910526,1757171519087,-413.64,0.00036986,8]
[383910527,1757171519097,-400.0,0.00036986,8]
[383910528,1757171519106,-400.0,0.00036986,8]
[383910529,1757171519117,-400.0,0.00036986,8]
[383910530,1757171519127,-400.0,0.00036986,8]
[383910531,1757171519136,-510.83,0.00036986,8]
[383910532,1757171519146,-498.18,0.00036986,8]
[383910533,1757171519157,-400.0,0.00036986,8]
[383910534,1757171519167,-407.94,0.00036986,8]
[383910535,1757171519177,-400.0,0.00036986,8]
[383910536,1757171519187,-518.22,0.00036986,8]
[383910537,1757171519196,-400.0,0.00036986,8]
[383910538,1757171519205,-400.0,0.00036986,8]
[383910539,1757171519215,-400.0,0.00036986,8]
[383910540,1757171519225,-484.18,0.00036986,8]
[383910541,1757171519235,-461.56,0.00036986,8]
[383910542,1757171519245,-400.0,0.00036986,8]
[383910543,1757171519254,-523.48,0.00036986,8]
[383910544,1757171519264,-407.14333375,0.00036986,8]
[383910545,1757171519275,-400.0,0.00036986,8]
[383910546,1757171519284,-407.88766611,0.00036986,8]
[383910547,1757171519293,-400.0,0.00036986,8]
[383910548,1757171519303,-455.8,0.00036986,8]
[383910549,1757171519313,-400.0,0.00036986,8]
[383910550,1757171519323,-400.0,0.00036986,8]
[383910551,1757171519333,-400.0,0.00036986,8]
[383910552,1757171519342,-400.0,0.00036986,8]
[383910553,1757171519351,-400.0,0.00036986,8]
[383910554,1757171519361,-400.0,0.00036986,8]
[383910555,1757171519370,-771.26,0.00036986,8]
[383910556,1757171519380,-400.0,0.00036986,8]
[383910557,1757171519389,-400.0,0.00036986,8]
[383910558,1757171519399,-529.03,0.00036986,8]
[383910559,1757171519408,-400.0,0.00036986,8]
[383910560,1757171519417,-400.0,0.00036986,8]
[383910561,1757171519426,-400.0,0.00036986,8]
[383910562,1757171519435,-400.0,0.00036986,8]
[383910563,1757171519445,-400.0,0.00036986,8]
[383910564,1757171519454,-488.2,0.00036986,8]
[383910565,1757171519464,-400.0,0.00036986,8]
[383910566,1757171519473,-400.0,0.00036986,8]
[383910567,1757171519483,-400.0,0.00036986,8]
[383910568,1757171519492,-400.0,0.00036986,8]
[383910569,1757171519502,-540.73566666,0.00036986,8]
[383910570,1757171519512,-400.0,0.00036986,8]
[383910571,1757171519522,-295.08016371,0.00036986,8]
[383910572,1757171519533,-514.33,0.00036986,8]
[383910573,1757171519543,-400.0,0.00036986,8]
[383910574,1757171519552,-400.0,0.00036986,8]
[383910575,1757171519563,-400.0,0.00036986,8]
[383910576,1757171519572,-446.5,0.00036986,8]
[383910577,1757171519582,-957.34,0.00036986,8]
[383910578,1757171519591,-2661.89,0.00036986,8]
[383910579,1757171519602,-404.12427497,0.00036986,8]
[383910580,1757171519612,-400.0,0.00036986,8]
[383910581,1757171519621,-400.0,0.00036986,8]
[383910582,1757171519631,-400.0,0.00036986,8]
[383910583,1757171519641,-400.0,0.00036986,8]
[383910584,1757171519651,-443.95,0.00036986,8]
[383910585,1757171519661,-522.75,0.00036986,8]
[383910586,1757171519670,-312.4183839,0.00036986,8]
[383910587,1757171519679,-400.0,0.00036986,8]
[383910588,1757171519688,-1080.71,0.00036986,8]
[383910589,1757171519698,-400.0,0.00036986,8]
[383910590,1757171519708,-631.51,0.00036986,8]
[383910591,1757171519717,-400.0,0.00036986,8]
[383910592,1757171519727,-423.77,0.00036986,8]
[383910593,1757171519739,-665.38,0.00036986,8]
[383910594,1757171519750,-438.86,0.00036986,8]
[383910595,1757171519760,-400.0,0.00036986,8]
[383910596,1757171519770,-400.0,0.00036986,8]
[383910597,1757171519779,-400.0,0.00036986,8]
[383910598,1757171519790,-400.0,0.00036986,8]
[383910599,1757171519800,-400.0,0.00036986,8]
[383910600,1757171519810,-400.0,0.00036986,8]
[383910601,1757171519819,-807.77,0.00036986,8]
[383910602,1757171519829,-400.0,0.00036986,8]
[383910603,1757171519838,-1470.18,0.00036986,8]
[383910604,1757171519848,-400.0,0.00036986,8]
[383910605,1757171519857,-400.0,0.00036986,8]
[383910606,1757171519868,-411.24250341,0.00036986,8]
[383910607,1757171519878,-481.87,0.00036986,8]
[383910608,1757171519888,-486.75,0.00036986,8]
[383910609,1757171519898,-4237.61,0.00036986,8]
[383910610,1757171519909,-400.0,0.00036986,8]
[383910611,1757171519920,-1400.7,0.00036986,8]
[383910612,1757171519930,-400.0,0.00036986,8]
[383910613,1757171519941,-400.0,0.00036986,8]
[383910614,1757171519952,-666.63,0.00036986,8]
[383910615,1757171519963,-3913.69,0.00036986,8]
[383910616,1757171519973,-400.0,0.00036986,8]
[383910617,1757171519984,-400.0,0.00036986,8]
[383910618,1757171519994,-413.53549845,0.00036986,8]
[383910619,1757171520003,-400.0,0.00036986,8]
[383910620,1757171520013,-558.61,0.00036986,8]
[383910621,1757171520024,-857.87,0.00036986,8]
[383910622,1757171520034,-400.0,0.00036986,8]
[383910623,1757171520044,-523.32,0.00036986,8]
[383910624,1757171520054,-400.0,0.00036986,8]
[383910625,1757171520063,-1022.53,0.00036986,8]
[383910626,1757171520073,-491.22,0.00036986,8]
[383910627,1757171520083,-440.83,0.00036986,8]
[383910628,1757171520092,-400.0,0.00036986,8]
[383910629,1757171520102,-527.91,0.00036986,8]
[383910630,1757171520112,-613.93,0.00036986,8]
[383910631,1757171520121,-400.0,0.00036986,8]
[383910632,1757171520131,-400.0,0.00036986,8]
[383910633,1757171520140,-404.89340431,0.00036986,8]
[383910634,1757171520150,-819.34,0.00036986,8]
[383910635,1757171520159,-379.13298961,0.00036986,8]
[383910636,1757171520168,-686.88,0.00036986,8]
[383910637,1757171520178,-400.0,0.00036986,8]
[383910638,1757171520187,-400.0,0.00036986,8]
[383910639,1757171520197,-400.0,0.00036986,8]
[383910640,1757171520206,-454.21,0.00036986,8]
[383910641,1757171520216,-677.45,0.00036986,8]
[383910642,1757171520225,-525.22,0.00036986,8]
[383910643,1757171520235,-500.62,0.00036986,8]
[383910644,1757171520245,-400.0,0.00036986,8]
[383910645,1757171520255,-402.0,0.00036986,8]
[383910646,1757171520264,-400.0,0.00036986,8]
[383910647,1757171520274,-452.03982746,0.00036986,8]
[383910648,1757171520284,-400.0,0.00036986,8]
[383910649,1757171520295,-400.0,0.00036986,8]
[383910650,1757171520305,-400.0,0.00036986,8]
[383910651,1757171520315,-400.0,0.00036986,8]
[383910652,1757171520324,-400.0,0.00036986,8]
[383910653,1757171520334,-424.76,0.00036986,8]
[383910654,1757171520344,-400.0,0.00036986,8]
[383910655,1757171520353,-666.85,0.00036986,8]
[383910656,1757171520363,-400.0,0.00036986,8]
[383910657,1757171520373,-424.8,0.00036986,8]
[383910658,1757171520382,-400.0,0.00036986,8]
[383910659,1757171520392,-407.68604312,0.00036986,8]
[383910660,1757171520401,-400.0,0.00036986,8]
[383910661,1757171520411,-534.96,0.00036986,8]
[383910662,1757171520420,-400.0,0.00036986,8]
[383910663,1757171520430,-400.0,0.00036986,8]
[383910664,1757171520439,-1573.52,0.00036986,8]
[383910665,1757171520449,-2301.18,0.00036986,8]
[383910666,1757171520459,-400.0,0.00036986,8]
[383910667,1757171520468,-400.0,0.00036986,8]
[383910668,1757171520478,-994.18,0.00036986,8]
[383910669,1757171520488,-400.0,0.00036986,8]
[383910670,1757171520498,-1335.37,0.00036986,8]
[383910671,1757171520507,-400.0,0.00036986,8]
[383910672,1757171520517,-400.0,0.00036986,8]
[383910673,1757171520527,-407.98923797,0.00036986,8]
[383910674,1757171520538,-400.0,0.00036986,8]
[383910675,1757171520548,-694.9,0.00036986,8]
[383910676,1757171520560,-400.0,0.00036986,8]
[383910677,1757171520570,-400.0,0.00036986,8]
[383910678,1757171520580,-440.97,0.00036986,8]
[383910679,1757171520590,-448.05,0.00036986,8]
[383910680,1757171520601,-400.0,0.00036986,8]
[383910681,1757171520611,-429.02,0.00036986,8]
[383910682,1757171520621,-400.0,0.00036986,8]
[383910683,1757171520632,-1031.45,0.00036986,8]
[383910684,1757171520642,-400.0,0.00036986,8]
[383910685,1757171520652,-400.0,0.00036986,8]
[383910686,1757171520663,-400.0,0.00036986,8]
[383910687,1757171520672,-493.53,0.00036986,8]
[383910688,1757171520682,-2599.28,0.00036986,8]
[383910689,1757171520691,-400.0,0.00036986,8]
[383910690,1757171520700,-525.12,0.00036986,8]
[383910691,1757171520710,-518.48,0.00036986,8]
[383910692,1757171520720,-400.0,0.00036986,8]
[383910693,1757171520730,-400.0,0.00036986,8]
[383910694,1757171520739,-585.16,0.00036986,8]
[383910695,1757171520749,-400.0,0.00036986,8]
[383910696,1757171520759,-400.0,0.00036986,8]
[383910697,1757171520768,-906.65,0.00036986,8]
[383910698,1757171520778,-400.0,0.00036986,8]
[383910699,1757171520787,-400.0,0.00036986,8]
[383910700,1757171520796,-400.0,0.00036986,8]
[383910701,1757171520806,-400.0,0.00036986,8]
[383910702,1757171520816,-400.0,0.00036986,8]
[383910703,1757171520825,-400.0,0.00036986,8]
[383910704,1757171520835,-400.0,0.00036986,8]
[383910705,1757171520844,-1010.34,0.00036986,8]
[383910706,1757171520854,-4402.47,0.00036986,8]
[383910707,1757171520863,-504.89,0.00036986,8]
[383910708,1757171520873,-415.65690713,0.00036986,8]
[383910709,1757171520884,-400.0,0.00036986,8]
[383910710,1757171520893,-400.0,0.00036986,8]
[383910711,1757171520905,-400.0,0.00036986,8]
[383910712,1757171520914,-8768.83,0.00036986,8]
[383910713,1757171520923,-400.0,0.00036986,8]
[383910714,1757171520933,-400.0,0.00036986,8]
[383910715,1757171520942,-400.0,0.00036986,8]
[383910716,1757171520952,-400.0,0.00036986,8]
[383910717,1757171520961,-400.0,0.00036986,8]
[383910718,1757171520970,-1577.02,0.00036986,8]
[383910719,1757171520980,-2234.93,0.00036986,8]
[383910720,1757171520989,-516.56,0.00036986,8]
[383910721,1757171520999,-400.0,0.00036986,8]
[383910722,1757171521008,-481.48,0.00036986,8]
[383910723,1757171521017,-400.0,0.00036986,8]
[383910724,1757171521027,-402.84,0.00036986,8]
[383910725,1757171521036,-400.0,0.00036986,8]
[383910726,1757171521046,-400.0,0.00036986,8]
[383910727,1757171521055,-1194.33,0.00036986,8]
[383910728,1757171521065,-400.0,0.00036986,8]
[383910729,1757171521074,-400.0,0.00036986,8]
[383910730,1757171521085,-819.48,0.00036986,8]
[383910731,1757171521095,-400.0,0.00036986,8]
[383910732,1757171521106,-588.21,0.00036986,8]
[383910733,1757171521341,-400.0,0.00036986,8]
[383910734,1757171521351,-400.0,0.00036986,8]
[383910735,1757171521361,-436.59,0.00036986,8]
[383910736,1757171521371,-2640.14,0.00036986,8]
[383910737,1757171521381,-400.0,0.00036986,8]
[383910738,1757171521390,-414.87,0.00036986,8]
[383910739,1757171521400,-1565.2,0.00036986,8]
[383910740,1757171521410,-400.0,0.00036986,8]
[383910741,1757171521419,-400.0,0.00036986,8]
[383910742,1757171521428,-400.0,0.00036986,8]
[383910743,1757171521438,-1250.41,0.00036986,8]
[383910744,1757171521448,-400.0,0.00036986,8]
[383910745,1757171521458,-400.0,0.00036986,8]
[383910746,1757171521468,-400.0,0.00036986,8]
[383910747,1757171521478,-1545.26,0.00036986,8]
[383910748,1757171521487,-518.55,0.00036986,8]
[383910749,1757171521497,-554.77,0.00036986,8]
[383910750,1757171521507,-300.0,0.00036986,8]
[383910751,1757171521517,-756.41,0.00036986,8]
[383910752,1757171521526,-500.65,0.00036986,8]
[383910753,1757171521535,-719.36,0.00036986,8]
[383910754,1757171521545,-472.88,0.00036986,8]
[383910755,1757171521558,-400.0,0.00036986,8]
[383910756,1757171521567,-400.0,0.00036986,8]
[383910757,1757171521577,-895.2,0.00036986,8]
[383910758,1757171521586,-400.0,0.00036986,8]
[383910759,1757171521596,-724.14,0.00036986,8]
[383910760,1757171521606,-400.0,0.00036986,8]
[383910761,1757171521615,-400.0,0.00036986,8]
[383910762,1757171521625,-400.0,0.00036986,8]
[383910763,1757171521635,-3048.68,0.00036986,8]
[383910764,1757171521645,-1135.42,0.00036986,8]
[383910765,1757171521655,-428.4920686,0.00036986,8]
[383910766,1757171521664,-409.95485438,0.00036986,8]
[383910767,1757171521674,-400.0,0.00036986,8]
[383910768,1757171521683,-400.0,0.00036986,8]
[383910769,1757171521694,-643.29,0.00036986,8]
[383910770,1757171521704,-523.6,0.00036986,8]
[383910771,1757171521714,-1226.38,0.00036986,8]
[383910772,1757171521724,-400.0,0.00036986,8]
[383910773,1757171521734,-638.06,0.00036986,8]
[383910774,1757171521744,-644.86,0.00036986,8]
[383910775,1757171521754,-421.77,0.00036986,8]
[383910776,1757171521764,-3125.17,0.00036986,8]
[383910777,1757171521773,-858.9,0.00036986,8]
[383910778,1757171521782,-400.0,0.00036986,8]
[383910779,1757171521791,-400.0,0.00036986,8]
[383910780,1757171521802,-620.0,0.00036986,8]
[383910781,1757171521813,-400.0,0.00036986,8]
[383910782,1757171521824,-510.75,0.00036986,8]
[383910783,1757171521834,-1106.27,0.00036986,8]
[383910784,1757171521845,-400.0,0.00036986,8]
[383910785,1757171521855,-400.0,0.00036986,8]
[383910786,1757171521865,-500.0,0.00036986,2]
[383910787,1757171521875,-414.10465842,0.00036986,8]
[383910788,1757171521884,-400.0,0.00036986,8]
[383910789,1757171521895,-623.2,0.00036986,8]
[383910790,1757171521904,-400.0,0.00036986,8]
[383910791,1757171521915,-524.19,0.00036986,8]
[383910792,1757171521924,-400.0,0.00036986,8]
[383910793,1757171521934,-400.0,0.00036986,8]
[383910794,1757171521944,-492.97,0.00036986,8]
[383910795,1757171521954,-464.85,0.00036986,8]
[383910796,1757171521964,-1992.17,0.00036986,8]
[383910797,1757171521973,-404.41552378,0.00036986,8]
[383910798,1757171521983,-400.0,0.00036986,8]
[383910799,1757171521994,-400.0,0.00036986,8]
[383910800,1757171522006,-400.0,0.00036986,8]
[383910801,1757171522015,-2818.6,0.00036986,8]
[383910802,1757171522025,-1314.68,0.00036986,8]
[383910803,1757171522036,-712.7,0.00036986,8]
[383910804,1757171522046,-992.23,0.00036986,120]
[383910805,1757171522057,-407.56386441,0.00036986,8]
[383910806,1757171522067,-995.66,0.00036986,8]
[383910807,1757171522077,-400.0,0.00036986,8]
[383910808,1757171522086,-920.55,0.00036986,8]
[383910809,1757171522096,-400.0,0.00036986,8]
[383910810,1757171522106,-400.0,0.00036986,8]
[383910811,1757171522117,-1567.79,0.00036986,8]
[383910812,1757171522128,-973.39,0.00036986,8]
[383910813,1757171522138,-400.0,0.00036986,8]
[383910814,1757171522148,-400.0,0.00036986,8]
[383910815,1757171522158,-874.07,0.00036986,8]
[383910816,1757171522168,-427.97,0.00036986,8]
[383910817,1757171522179,-400.0,0.00036986,8]
[383910818,1757171522189,-1126.85,0.00036986,8]
[383910819,1757171522200,-400.0,0.00036986,8]
[383910820,1757171522210,-753.77,0.00036986,8]
[383910821,1757171522220,-1185.35,0.00036986,8]
[383910822,1757171522231,-605.22,0.00036986,8]
[383910823,1757171522241,-400.0,0.00036986,8]
[383910824,1757171522251,-1629.61,0.00036986,8]
[383910825,1757171522261,-408.6344774,0.00036986,8]
[383910826,1757171522271,-400.0,0.00036986,8]
[383910827,1757171522281,-400.0,0.00036986,8]
[383910828,1757171522291,-895.51,0.00036986,8]
[383910829,1757171522301,-400.0,0.00036986,8]
[383910830,1757171522311,-400.0,0.00036986,8]
[383910831,1757171522321,-400.0,0.00036986,8]
[383910832,1757171522330,-1333.57,0.00036986,8]
[383910833,1757171522340,-527.93450787,0.00036986,8]
[383910834,1757171522349,-581.1,0.00036986,8]
[383910835,1757171522359,-3538.68,0.00036986,8]
[383910836,1757171522370,-400.0,0.00036986,8]
[383910837,1757171522381,-615.33,0.00036986,8]
[383910838,1757171522391,-1458.45,0.00036986,8]
[383910839,1757171522400,-400.0,0.00036986,8]
[383910840,1757171522410,-400.0,0.00036986,8]
[383910841,1757171522420,-400.0,0.00036986,8]
[383910842,1757171522437,-400.0,0.00036986,8]
[383910843,1757171522446,-400.0,0.00036986,8]
[383910844,1757171522456,-472.17,0.00036986,8]
[383910845,1757171522465,-400.0,0.00036986,8]
[383910846,1757171522475,-400.0,0.00036986,8]
[383910847,1757171522484,-400.0,0.00036986,8]
[383910848,1757171522494,-193.37115307,0.00036986,8]
[383910849,1757171522504,-400.0,0.00036986,8]
[383910850,1757171522514,-405.37637194,0.00036986,8]
[383910851,1757171522523,-400.0,0.00036986,8]
[383910852,1757171522533,-727.4,0.00036986,8]
[383910853,1757171522543,-400.0,0.00036986,8]
[383910854,1757171522554,-1006.32,0.00036986,8]
[383910855,1757171522565,-400.0,0.00036986,8]
[383910856,1757171522575,-435.85,0.00036986,8]
[383910857,1757171522584,-816.22,0.00036986,8]
[383910858,1757171522594,-411.22324046,0.00036986,8]
[383910859,1757171522605,-455.94,0.00036986,8]
[383910860,1757171522616,-400.0,0.00036986,8]
[383910861,1757171522625,-457.05,0.00036986,8]
[383910862,1757171522637,-400.0,0.00036986,8]
[383910863,1757171522648,-400.0,0.00036986,8]
[383910864,1757171522657,-2331.2,0.00036986,8]
[383910865,1757171522667,-400.0,0.00036986,8]
[383910866,1757171522676,-400.0,0.00036986,8]
[383910867,1757171522686,-667.62,0.00036986,8]
[383910868,1757171522696,-400.0,0.00036986,8]
[383910869,1757171522705,-477.75,0.00036986,8]
[383910870,1757171522714,-1449.04,0.00036986,8]
[383910871,1757171522724,-400.0,0.00036986,8]
[383910872,1757171522733,-400.0,0.00036986,8]
[383910873,1757171522743,-400.0,0.00036986,8]
[383910874,1757171522752,-400.0,0.00036986,8]
[383910875,1757171522762,-400.0,0.00036986,8]
[383910876,1757171522772,-413.91116885,0.00036986,8]
[383910877,1757171522781,-400.0,0.00036986,8]
[383910878,1757171522791,-400.0,0.00036986,8]
[383910879,1757171522801,-400.0,0.00036986,8]
[383910880,1757171522812,-400.0,0.00036986,8]
[383910881,1757171522822,-400.0,0.00036986,8]
[383910882,1757171522832,-400.0,0.00036986,8]
[383910883,1757171522841,-468.0,0.00036986,8]
[383910884,1757171522851,-1182.16,0.00036986,8]
[383910885,1757171522861,-400.0,0.00036986,8]
[383910886,1757171522871,-538.36,0.00036986,8]
[383910887,1757171522881,-400.0,0.00036986,8]
[383910888,1757171522891,-400.0,0.00036986,8]
[383910889,1757171522900,-516.63,0.00036986,8]
[383910890,1757171522909,-615.32,0.00036986,8]
[383910891,1757171522919,-400.0,0.00036986,8]
[383910892,1757171522928,-400.0,0.00036986,8]
[383910893,1757171522938,-412.98,0.00036986,8]
[383910894,1757171522948,-400.0,0.00036986,8]
[383910895,1757171522957,-400.0,0.00036986,8]
[383910896,1757171522967,-156.17161471,0.00036986,8]
[383910897,1757171522976,-2132.96,0.00036986,8]
[383910898,1757171522986,-400.0,0.00036986,8]
[383910899,1757171522995,-2499.57,0.00036986,8]
[383910900,1757171523005,-400.0,0.00036986,8]
[383910901,1757171523015,-400.0,0.00036986,8]
[383910902,1757171523024,-400.0,0.00036986,8]
[383910903,1757171523034,-400.0,0.00036986,8]
[383910904,1757171523045,-482.21,0.00036986,8]
[383910905,1757171523055,-400.0,0.00036986,8]
[383910906,1757171523065,-424.36,0.00036986,8]
[383910907,1757171523075,-439.47,0.00036986,8]
[383910908,1757171523086,-400.0,0.00036986,8]
[383910909,1757171523097,-400.0,0.00036986,8]
[383910910,1757171523107,-400.0,0.00036986,8]
[383910911,1757171523117,-489.75,0.00036986,8]
[383910912,1757171523127,-2235.5,0.00036986,8]
[383910913,1757171523138,-1000.0,0.00036986,8]
[383910914,1757171523148,-400.0,0.00036986,8]
[383910915,1757171523158,-457.6,0.00036986,8]
[383910916,1757171523169,-400.0,0.00036986,8]
[383910917,1757171523179,-400.0,0.00036986,8]
[383910918,1757171523190,-1925.38,0.00036986,8]
[383910919,1757171523200,-2649.97,0.00036986,8]
[383910920,1757171523210,-405.19397258,0.00036986,8]
[383910921,1757171523221,-501.4,0.00036986,8]
[383910922,1757171523232,-400.0,0.00036986,8]
[383910923,1757171523243,-2294.59,0.00036986,8]
[383910924,1757171523253,-400.0,0.00036986,8]
[383910925,1757171523264,-400.0,0.00036986,8]
[383910926,1757171523275,-438.01,0.00036986,8]
[383910927,1757171523285,-400.0,0.00036986,8]
[383910928,1757171523297,-400.0,0.00036986,8]
[383910929,1757171523307,-400.0,0.00036986,8]
[383910930,1757171523318,-400.0,0.00036986,8]
[383910931,1757171523328,-400.0,0.00036986,8]
[383910932,1757171523338,-400.0,0.00036986,8]
[383910933,1757171523348,-400.0,0.00036986,8]
[383910934,1757171523358,-400.0,0.00036986,8]
[383910935,1757171523368,-400.0,0.00036986,8]
[383910936,1757171523378,-1226.94,0.00036986,8]
[383910937,1757171523388,-400.0,0.00036986,8]
[383910938,1757171523398,-500.37,0.00036986,8]
[383910939,1757171523408,-400.0,0.00036986,8]
[383910940,1757171523418,-400.0,0.00036986,8]
[383910941,1757171523427,-4561.62,0.00036986,8]
[383910942,1757171523437,-576.06,0.00036986,8]
[383910943,1757171523447,-400.0,0.00036986,8]
[383910944,1757171523457,-400.0,0.00036986,8]
[383910945,1757171523467,-400.0,0.00036986,8]
[383910946,1757171523476,-2406.6,0.00036986,8]
[383910947,1757171523486,-400.0,0.00036986,8]
[383910948,1757171523495,-627.71,0.00036986,8]
[383910949,1757171523505,-400.0,0.00036986,8]
[383910950,1757171523515,-465.02,0.00036986,8]
[383910951,1757171523525,-400.0,0.00036986,8]
[383910952,1757171523535,-400.0,0.00036986,8]
[383910953,1757171523545,-400.0,0.00036986,8]
[383910954,1757171523558,-400.0,0.00036986,8]